Cogmind - Beta 17 @@@ ROGUE MODE // 2026.08.02 @ 08:49:13 Player: Riddarn Result: Destroyed by G-34 Mercenary with Small Laser Performance ------------- Evolutions (0) 0 Regions Visited (1) 200 Robots Destroyed (13) 65 Value Destroyed (355) 355 Prototype IDs (0) 0 Alien Tech Used (0) 0 Bonus (0) 0 TOTAL SCORE: 620 Bonus ------- None Cogmind --------- Core Integrity 0/250 Matter 292/300 Energy 99/100 System Corruption 0% Temperature Cool (6) Movement Core (50) Location -10/Materials Parts ------- > --- POWER (1) -------- (None) > --- PROPULSION (2) --- (None) > --- UTILITY (2) ------ (None) > --- WEAPON (2) ------- (None) > --- INVENTORY (5) ---- Small Storage Unit Battle Rifle Subdweller Machine Gun Grenade Launcher Datajack Peak State ------------ > --- POWER ------------ Ion Engine > --- PROPULSION ------- Flight Unit Flight Unit > --- UTILITY ---------- Heat Sink Small Storage Unit > --- WEAPON ----------- Battle Rifle Subdweller Machine Gun > --- INVENTORY -------- Light Treads Medium Laser Light Assault Rifle Grenade Launcher Datajack [Rating: 9] Favorites ----------- Power Light Ion Engine Engine Light Ion Engine Propulsion Light Treads Treads Light Treads Flight Unit Flight Unit Utility Small Storage Unit Device Tractor Beam Storage Small Storage Unit Weapon Light Assault Rifle Ballistic Gun Light Assault Rifle Build | -11 -10 ------- Run | Yrd Mat Slots Evolved . | . . Power . | . . Propulsion . | . . Utility . | . . Weapon . | . . Parts Attached 16 | 6 10 Power 2 | 1 1 Engine 2 | 1 1 Core . | . . Reactor . | . . Propulsion 5 | 2 3 Treads 3 | 2 1 Leg . | . . Wheel . | . . Hover . | . . Flight 2 | . 2 Utility 4 | 1 3 Device 2 | . 2 Storage 2 | 1 1 Processor . | . . Hackware . | . . Protection . | . . Artifact . | . . Weapon 5 | 2 3 Energy Gun . | . . Energy Cannon . | . . Ballistic Gun 5 | 2 3 Ballistic Cannon . | . . Launcher . | . . Special Weapon . | . . Impact Weapon . | . . Slashing Weapon . | . . Piercing Weapon . | . . Special Melee Weapon . | . . Unidentified Prototypes . | . . Parts Lost 8 | . 8 Power 2 | . 2 Propulsion 3 | . 3 Utility 2 | . 2 Weapon 1 | . 1 Highest Loss Streak 5 | . 5 To Critical Strikes . | . . Average Backups 5 | 2 6 Power . | . 1 Propulsion . | . . Utility 1 | . 1 Weapon 2 | 1 2 Tool/Special . | . . Unused Backups 5 | . 5 Power 1 | . 1 Propulsion . | . . Utility . | . . Weapon 3 | . 3 Tool/Special 1 | . 1 Average Slot Usage (%) 82 | . 82 Engine 13 | . 13 Treads 23 | . 23 Flight 2 | . 2 Device 3 | . 3 Storage 12 | . 12 Ballistic Gun 26 | . 26 Peak Build Rating 9 | 6 9 Average Rating 6 | 3 6 On Entrance 3 | . 6 Avg Prop Armor Cover (%) . | . . Naked Turns 5 | . 5 Heaviest Build 31 | 11 31 Greatest Support 40 | 40 40 Greatest Overweight (x) 2 | . 2 Average Overweight (x) . | . . Largest Inventory Capacity 15 | 8 15 Average Capacity 10 | 6 10 Most Carried 10 | 5 10 Average Carried 5 | 2 6 Final Capacity 8 | 8 5 Final Carried 5 | 2 5 Class Distribution -------------------- 87% | Mutant 12% | Scavenger-Mutant Dominant Class ---------------- Mutant | -10/Materials Resources | -11 -10 ----------- Run | Yrd Mat Matter Collected 573 | 252 321 Remotely 102 | . 102 Salvage Created 452 | . 452 Parts 27 | . 27 Haulers Intercepted . | . . Recyclers Shooed 2 | . 2 Parts Field Recycled . | . . Retrieved Matter . | . . Parts Self-Destructed . | . . Prevented . | . . Parts Restored . | . . Kills | -11 -10 ------- Run | Yrd Mat Combat Hostiles Destroyed 11 | . 11 Guns 11 | . 11 Classes Destroyed 5 | . 5 Recycler 1 | . 1 Operator 1 | . 1 Swarmer 3 | . 3 Grunt 5 | . 5 Subdweller 3 | . 3 Best Kill Streak 4 | . 4 Combat Bots Only 3 | . 3 Max Kills in Single Turn 2 | . 2 Gunslinging 1 | . 1 Exploded . | . . Melee . | . . Uniques/NPCs Destroyed . | . . Combat | -11 -10 -------- Run | Yrd Mat Hostile Shots Fired 112 | . 112 Missed 37 | . 37 Hits 75 | . 75 Projectile 75 | . 75 Damage Taken 1039 | . 1039 Core 261 | . 261 Absorbed by Shields . | . . Core Remaining (%) 100 | 100 . Volleys Fired 62 | . 62 Largest 2 | . 2 Hottest 55 | . 55 Shots Fired 115 | . 115 Gun 115 | . 115 Cannon . | . . Launcher . | . . Special . | . . Kinetic 115 | . 115 Thermal . | . . Explosive . | . . Electromagnetic . | . . Robot Hit Streak 15 | . 15 Robot Miss Streak 6 | . 6 Penetration Max . | . . Secondary Targets 1 | . 1 Max Gunslinging Chain 1 | . 1 Shots Hit Robots 72 | . 72 Core Hits 24 | . 24 Critical Kills 1 | . 1 Critical Parts Destroyed 1 | . 1 Critical Strikes 2 | . 2 Destroy 2 | . 2 Melee Attacks . | . . Impact . | . . Slashing . | . . Piercing . | . . Sneak Attacks . | . . Combat Hostiles . | . . Follow-up Attacks . | . . Damage Inflicted 934 | . 934 Guns 886 | . 886 Cannons . | . . Explosions . | . . Melee . | . . Ramming 48 | . 48 Kinetic 886 | . 886 Thermal . | . . Explosive . | . . Electromagnetic . | . . Impact . | . . Slashing . | . . Piercing . | . . Highest Corruption . | . . Average Corruption . | . . Corruption Purged . | . . Corruption Blocked . | . . Overload Shots . | . . Overflow Damage . | . . Projectiles . | . . Explosions . | . . Melee . | . . Knockbacks . | . . Impact . | . . Kinetic . | . . Secondary . | . . Self-Inflicted Damage . | . . Shots . | . . Rammed 13 | . 13 Targets Rammed 13 | . 13 Kicked . | . . Crushed . | . . Highest Temperature 40 | . 40 Average Temperature 12 | . 12 Received Heat Transfer 390 | . 390 Siege Activations . | . . Martial Activations . | . . Shielding Activations . | . . Robots Disrupted . | . . Combat Hostiles . | . . Robots Corrupted . | . . Combat Hostiles . | . . Parts Fried . | . . Impact Corruptions . | . . Robots Melted . | . . Combat Hostiles . | . . Parts Melted . | . . Heat Transferred . | . . Parts Sabotaged . | . . Parts Stolen . | . . Parts Stripped . | . . Power Chain Reactions . | . . Alert | -11 -10 ------- Run | Yrd Mat Maximum Alert Level . | . . Low Security (%) 100 | 100 100 Level 1 . | . . Level 2 . | . . Level 3 . | . . Level 4 . | . . Level 5 . | . . High Security . | . . Max Security . | . . Peak Influence 84 | . 84 Initial . | . . Average 17 | . 18 Influence Increases 225 | . 225 Destroy 0b10 Robot/C 160 | . 160 Destroy 0b10 Robot/NC 10 | . 10 Destroy Leader 40 | . 40 Successful Hack 13 | . 13 Destroy Structure 2 | . 2 Influence Decreases 225 | . 225 Time Decay 164 | . 164 Lost Part 61 | . 61 Squads Dispatched 3 | . 3 Investigation 2 | . 2 Extermination . | . . Reinforcement 1 | . 1 Assault . | . . Garrison . | . . Intercept . | . . Searches Triggered . | . . Construction Impeded . | . . Haulers Reinforced . | . . Active Scanning Responses . | . . Cargo Convoy Interrupts . | . . Stealth | -11 -10 --------- Run | Yrd Mat Distress Signals 1 | . 1 Communications Jammed . | . . Distress Signals . | . . Times Spotted 19 | . 19 Peak Tracking Total 6 | . 6 Tactical Retreats . | . . Traps | -11 -10 ------- Run | Yrd Mat Traps Triggered . | . . Indirectly . | . . Trap Hack Attempts . | . . Triggered . | . . Disarmed . | . . Reprogrammed . | . . Reused . | . . Traps Extracted . | . . Installed . | . . Triggered . | . . Machines | -11 -10 ---------- Run | Yrd Mat Machines Disabled . | . . Max in Single Turn . | . . Machines Repaired . | . . Machines Dismantled . | . . Machines Sabotaged . | . . Overloaded Fab Kills . | . . Hacking | -11 -10 --------- Run | Yrd Mat Machines Accessed 3 | . 3 Terminals 3 | . 3 Fabricators . | . . Repair Stations . | . . Recycling Units . | . . Scanalyzers . | . . Garrison Access . | . . Total Hacks 11 | . 11 Successful 4 | . 4 Failed 7 | . 7 Catastrophic 1 | . 1 Database Lockouts . | . . Manual 1 | . 1 Terminals 11 | . 11 Fabricators . | . . Repair Stations . | . . Recycling Units . | . . Scanalyzers . | . . Garrison Access . | . . Terminal Hacks 4 | . 4 Locate Traps 1 | . 1 Dispatch Records 1 | . 1 Recall Investigation 1 | . 1 Hauler Manifests 1 | . 1 Fabricator Hacks . | . . Repair Station Hacks . | . . Recycling Unit Hacks . | . . Scanalyzer . | . . Garrison Access Hacks . | . . Unauthorized Hacks . | . . Terminals . | . . Fabricators . | . . Repair Stations . | . . Recycling Units . | . . Scanalyzers . | . . Garrison Access . | . . Data Cores Recovered . | . . Used . | . . Hacking Detections 3 | . 3 Full Trace Events 2 | . 2 Feedback Events . | . . Feedback Blocked . | . . Robot Schematics Acquired . | . . Robots Built . | . . Authchips . | . . Time . | . . Total Robot Build Rating . | . . Part Schematics Acquired . | . . Parts Built . | . . Authchips . | . . Time . | . . Total Part Build Rating . | . . Part Studies Acquired . | . . Parts Repaired . | . . Time . | . . Parts Recycled . | . . Recycled Matter . | . . Retrieved Matter . | . . Retrieved Components . | . . Parts Scanalyzed . | . . Part Schematics Acquired . | . . Parts Damaged . | . . Bothacking | -11 -10 ------------ Run | Yrd Mat Used RIF Installer . | . . Robots Hacked . | . . Non-combat . | . . Combat . | . . Robot Hacks Applied . | . . Relay Couplers Released . | . . Fabnet Peak Effective % . | . . Robots Rewired . | . . Allies Hacked . | . . Hacks Repelled . | . . Allies | -11 -10 -------- Run | Yrd Mat Total Allies . | . . Largest Group . | . . Highest-Rated Group . | . . Highest-Rated Ally . | . . Total Orders . | . . Ally Attacks . | . . Total Damage . | . . Kills . | . . Allies Corrupted . | . . Allies Melted . | . . Intel | -11 -10 ------- Run | Yrd Mat Active Infowar (turns) . | . . Robot Analysis Total . | . . Derelict Logs Recovered . | . . Drone Launches . | . . Drone Recoveries . | . . Exploration | -11 -10 ------------- Run | Yrd Mat Turns Passed 1172 | 95 1077 Spaces Moved 536 | 55 481 Core 38 | 4 34 Treads 353 | 51 302 Legs . | . . Wheels . | . . Hover . | . . Flight 145 | . 145 Fastest Speed 37 | 50 37 Average Speed 129 | 152 127 Slowest Speed 240 | 160 240 Overloaded Moves . | . . Propulsion Burnouts . | . . Robots Hopped 3 | . 3 Potential Cave-ins . | . . Cave-ins Triggered . | . . Exploration Rate (%) 26 | 3 49 Regions Visited 1 Branch Regions . Pre-discovered Areas . | . . Known Exits Taken . | . . Unknown Exits Taken 1 | 1 . Scrap Searched . | . . Spaces Dug . | . . Terrain Destroyed 2 | . 2 Melee . | . . Projectile 2 | . 2 AOE . | . . Terrain Rammed . | . . Walls Destroyed . | . . Machines Disabled . | . . Actions | -11 -10 --------- Run | Yrd Mat Total 901 | 66 835 Wait 235 | . 235 Move 529 | 54 475 Hop 3 | . 3 Pick Up 23 | 6 17 Fast Attach 6 | 2 4 Attach 10 | 4 6 Detach 6 | . 6 Swap 2 | . 2 Drop 12 | . 12 Fire 62 | . 62 Melee . | . . Ram . | . . Kick . | . . Crush 13 | . 13 Escape Stasis . | . . Rewire . | . . Trap . | . . Miscellaneous . | . . Route ------- -11/Scrapyard -10/Materials (discovered 2 exits: [*Min] / [*Sub]) History --------- Turn | Location | Event 20 | -11/Scrapyard | Discovered new exit (range 16) 96 | -11/Scrapyard | Entered Materials 306 | -10/Materials | Build established: Mutant 596 | -10/Materials | Derelicts attacked the area 749 | -10/Materials | Discovered new exit (range 5) 1065 | -10/Materials | Discovered new exit (range 12) 1101 | -10/Materials | Core integrity fell below 50% 1171 | -10/Materials | Core integrity fell below 20% 1173 | -10/Materials | Destroyed by G-34 Mercenary with Small Laser Last Messages --------------- Retrieving dispatch records... Found 7 active squads: 3x Surveillance 2x Patrol 2x Transport ALERT: Suspicious activity at Terminal M006. Dispatching Investigation squad. K-01 Serf cleans the Terminal. Flight Unit destroyed. Connecting with Terminal... [Achievement: GoHome()] >>Recall(Investigation) Establishing remote squad link... Recalled investigation squad LWC3YKF3YP. Flight Unit destroyed. Heat Sink destroyed. W-16 Scout sends out distress signal. Ion Engine destroyed. K-01 Serf destroyed. Lgt. Assault Rifle destroyed. Map ----- +----------------------------------------------------+ | ???????????????? ?#########???### ###??????????? | | ?????###########+#+## ##### #??????????? | | ?????# """ """ # #??????????? | | ?????# """ """ + < T +??????????? | | ?????# """ """ # #??????????? | | ?????# # ## ##### #??????????? | | ?????# # ## "|"!" #???## ##??????????? | | ?????# + ##""|"!""#????# #???????????? | | ?????# # ##########????# #???????????? | | ?????# # #?????????????# #???????????? | | ?????##+######## #?????????????# #???????????? | | ??????# #?# #?????????????# #???????????? | | ??????# #?# #?????????????# #???????????? | | ??????# #?# #?????????????+ #???????????? | | ??????# ### ##????????????# ???????????? | | # ##### ## #????????????? #???????????? | | # #????????????? ###?????????? | | + T !########?????? ####??????? | | # #?????? ???????? | | # ####### ### #### #?????? ????????? | | # #######+#### ##??# #?????? ?????????? | | # ?# #?# #???# #?????? ??????????? | | # ?# ### #???# #??????# #??????????? | | # ?# + #???# #??????# #??????????? | | # # ### #??## ##?????# #??????????? | | # # #?# #??# @ ####### #??????????? | | # + [#?# #??# *%= #??????????? | | # # ### #??# g = g #??????????? | | # # + #??# g #??????????? | | # ?# ### #??# ###########??????????? | | ?##########?# #??#######????????????????????? | | ?????????????# #?????????????????????????????? | | ????????????? +?????????????????????????????? | | +?????????????? #?????????????????????????????? | | ??????????????? #?????????????????????????????? | | ???????????????##+##?????????????????????????????? | | ?????????????????????????????????????????????????? | | ?????????????????????????????????????????????????? | | ?????????????????????????????????????????????????? | | ?????????????????????????????????????????????????? | | ?????????????????????????????????????????????????? | | ?????????????????????????????????????????????????? | | | | | | | | | | | | | | | | | +----------------------------------------------------+ Best States ------------- Heat Dissipation 35 Energy Generation 10 Energy Capacity 250 Matter Stores 300 Matter Capacity 300 Sight Range 16 Terrain Scan Density 10 Evasion (%) 62 Recoil Reduction 2 Item Schematics ----------------- None Robot Schematics ------------------ None Fabricated ------------ Nothing Repaired ---------- Nothing Studied --------- None Alien Tech Used ----------------- None Achievements -------------- GoHome() Use The Force Challenges ------------ None Game ------ Seed AntimatterThrowingCartridge Manual? 0 Play Time 00:12:43 Cumulative 7.3 hours Start 2026.08.02 @ 08:36:49 End 2026.08.02 @ 08:49:13 Sessions 1 Manual Loads 0 Difficulty Rogue Special Mode None Game No. 11 Rogue 7 Adventurer 4 Explorer 0 Win Type - Total 0 Types 0/0/0/0/0/0/0/0/0/0 Lore% 2 Gallery% 10 Achievement% 9 Wizard Run 0 Options --------- Layout 1 ASCII 0 Keyboard 0 Movement Numpad Keybinds 0 Fullscreen 1 Font 32/SmallcapsGlow Map View 50x35 Zoom Use 0% Tactical HUD 0 Map Filters NONE Filters NONE Steam 1 RUN: 1dd7a319-e8d9-431f-9eec-0ecc1eea0fe8